[Event "RUS-ch Girls U21 2021"]
[Site "Loo"]
[Date "2021.04.25"]
[Round "5.8"]
[White "Serditykh, Olesya"]
[Black "Bogdanova, Darya"]
[Result "1-0"]
[ECO "D04"]
[WhiteElo "1961"]
[BlackElo "1762"]
[Annotator "ChessBase"]
[PlyCount "61"]
[EventDate "2021.04.21"]
[EventType "swiss"]
[EventCountry "RUS"]
[SourceTitle "playchess.com"]
[Source "ChessBase"]
[SourceQuality "1"]
[TimeControl "40/5400+30:1800+30"]

1. d4 {[%emt 0:00:00]} d5 {[%emt 0:00:00]} 2. Nf3 {[%emt 0:00:00]} Nf6 {[%emt 0:00:00]} 3. e3 {[%emt 0:01:09]} c6 {[%emt 0:00:01]} 4. Bd3 {[%emt 0:01:19]} e6 {[%emt 0:00:28]} 5. Nbd2 {[%emt 0:02:06]} Nbd7 {[%emt 0:06:10]} 6. b3 {[%emt 0:00:45]} Bd6 {[%emt 0:01:54]} 7. Bb2 {[%emt 0:00:36]} c5 {[%emt 0:02:15]} 8. Ne5 {[%emt 0:05:58]} Qa5 {[%emt 0:09:45]} 9. O-O {[%emt 0:04:25]} b5 {[%emt 0:01:46]} 10. c4 {[%emt 0:08:22]} a6 {[%emt 0:12:39]} 11. cxd5 {[%emt 0:10:54]} exd5 {[%emt 0:30:39]} 12. Nxd7 {[%emt 0:01:31]} Bxd7 {[%emt 0:00:05]} 13. dxc5 {[%emt 0:00:45]} Bxc5 {[%emt 0:00:12]} 14. Nf3 {[%emt 0:01:20]} Qb6 {[%emt 0:06:55]} 15. Rc1 {[%emt 0:04:34]} Rc8 {[%emt 0:00:42]} 16. Bb1 {[%emt 0:03:31]} Qd6 {[%emt 0:04:12]} 17. Qd3 {[%emt 0:03:40]} Ba3 {[%emt 0:04:20]} 18. Rxc8+ {[%emt 0:10:23]} Bxc8 {[%emt 0:00:01]} 19. Bd4 {[%emt 0:00:18]} Be6 {[%emt 0:02:00]} 20. h3 {[%emt 0:05:07]} Qd7 {[%emt 0:07:37]} 21. Rd1 {[%emt 0:07:52]} Ke7 {[%emt 0:01:42]} 22. Qe2 {[%emt 0:04:33]} Re8 {[%emt 0:01:40]} 23. Ne5 {[%emt 0:00:49]} Qc7 {[%emt 0:00:44]} 24. Nd3 {[%emt 0:02:08]} Ne4 {[%emt 0:01:12]} 25. Qe1 {[%emt 0:01:51]} f6 {[%emt 0:00:41]} 26. f3 {[%emt 0:02:20]} Ng5 {[%emt 0:00:40]} 27. Nf4 {[%emt 0:01:56]} Kf7 {[%emt 0:01:22]} 28. h4 {[%emt 0:00:56]} Bd6 {[%emt 0:01:14]} 29. hxg5 {[%emt 0:00:21]} Bxf4 {[%emt 0:00:05]} 30. exf4 {[%emt 0:00:11]} Qxf4 {[%emt 0:01:11]} 31. Qd2 {[%emt 0:00:17]} 1-0

[Event "RUS-ch Girls U21 2021"]
[Site "Loo"]
[Date "2021.04.25"]
[Round "5.9"]
[White "Badmaeva, Baina"]
[Black "Emelyanova, Victoria"]
[Result "1/2-1/2"]
[ECO "B14"]
[WhiteElo "1751"]
[BlackElo "1765"]
[Annotator "NA"]
[PlyCount "123"]
[EventDate "2021.04.21"]
[EventType "swiss"]
[EventCountry "RUS"]
[SourceTitle "playchess.com"]
[Source "ChessBase"]
[SourceQuality "1"]
[TimeControl "40/5400+30:1800+30"]

1. e4 {[%emt 0:00:00]} c6 {[%emt 0:00:00]} 2. d4 {[%emt 0:00:00]} d5 {[%emt 0:00:00]} 3. exd5 {[%emt 0:00:00]} cxd5 {[%emt 0:00:00]} 4. c4 {[%emt 0:00:00]} Nf6 {[%emt 0:00:03]} 5. Nc3 {[%emt 0:00:47]} e6 {[%emt 0:00:24]} 6. Nf3 {[%emt 0:00:08]} Bb4 {[%emt 0:01:00]} 7. Qa4+ {[%emt 0:02:57]} Nc6 {[%emt 0:00:21]} 8. Ne5 {[%emt 0:00:36]} Qa5 {[%emt 0:04:09]} 9. Qxa5 {[%emt 0:02:40]} Bxa5 {[%emt 0:00:35]} 10. Nxc6 {[%emt 0:04:56]} bxc6 {[%emt 0:00:04]} 11. Bd2 {[%emt 0:11:50]} Rb8 {[%emt 0:02:37]} 12. b3 {[%emt 0:04:35]} Bb6 {[%emt 0:05:46]} 13. c5 {[%emt 0:07:25]} Bc7 {[%emt 0:00:07]} 14. Bd3 {[%emt 0:00:55]} e5 {[%emt 0:04:29]} 15. dxe5 {[%emt 0:03:03]} Bxe5 {[%emt 0:00:12]} 16. O-O {[%emt 0:00:10]} O-O {[%emt 0:03:15]} 17. Rae1 {[%emt 0:03:48]} Bd4 {[%emt 0:17:47]} 18. Na4 {[%emt 0:02:06]} Be6 {[%emt 0:16:33]} 19. Be3 {[%emt 0:07:09]} Bxe3 {[%emt 0:02:59]} 20. Rxe3 {[%emt 0:00:55]} Rfe8 {[%emt 0:07:57]} 21. Nb2 {[%emt 0:03:15]} Nd7 {[%emt 0:02:48]} 22. Rc1 {[%emt 0:00:15]} Kf8 {[%emt 0:04:36]} 23. f4 {[%emt 0:02:36]} g6 {[%emt 0:04:32]} 24. h3 {[%emt 0:10:20]} Rb4 {[%emt 0:09:01]} 25. Rf3 {[%emt 0:04:58]} Bf5 {[%emt 0:02:00]} 26. Bxf5 {[%emt 0:04:48]} gxf5 {[%emt 0:00:03]} 27. Nd3 {[%emt 0:00:23]} Rbe4 {[%emt 0:00:12]} 28. Kf1 {[%emt 0:00:17]} Re2 {[%emt 0:04:08]} 29. Rf2 {[%emt 0:00:21]} R2e3 {[%emt 0:00:49]} 30. Nb4 {[%emt 0:01:50]} R8e6 {[%emt 0:00:57]} 31. Rf3 {[%emt 0:05:21]} R3e4 {[%emt 0:01:01]} 32. Nd3 {[%emt 0:01:27]} Re2 {[%emt 0:01:20]} 33. a4 {[%emt 0:01:04]} R2e4 {[%emt 0:01:41]} 34. b4 {[%emt 0:00:59]} f6 {[%emt 0:01:25]} 35. Re1 {[%emt 0:05:39]} Rxe1+ {[%emt 0:02:00]} 36. Nxe1 {[%emt 0:00:05]} Re4 {[%emt 0:00:36]} 37. Nd3 {[%emt 0:01:44]} Nb8 {[%emt 0:00:43]} 38. Rf2 {[%emt 0:00:37]} Rd4 {[%emt 0:00:50]} 39. Rd2 {[%emt 0:01:10]} Na6 {[%emt 0:01:03]} 40. b5 {[%emt 0:00:00]} cxb5 {[%emt 0:00:00]} 41. axb5 {[%emt 0:08:30]} Nxc5 {[%emt 0:01:53]} 42. Ke2 {[%emt 0:00:37]} Ne4 {[%emt 0:16:04]} 43. Rc2 {[%emt 0:06:03]} Rc4 {[%emt 0:00:22]} 44. Rb2 {[%emt 0:06:22]} Nc3+ {[%emt 0:02:48]} 45. Kd2 {[%emt 0:02:20]} Ne4+ {[%emt 0:00:21]} 46. Ke2 {[%emt 0:00:20]} Nc3+ {[%emt 0:00:50]} 47. Kd2 {[%emt 0:00:05]} Kg7 {[%emt 0:04:08]} 48. Rb3 {[%emt 0:03:26]} Ne4+ {[%emt 0:00:49]} 49. Ke2 {[%emt 0:03:41]} Nc3+ {[%emt 0:03:25]} 50. Kd2 {[%emt 0:00:09]} Ne4+ {[%emt 0:01:57]} 51. Ke2 {[%emt 0:00:06]} d4 {[%emt 0:01:23]} 52. Nb2 {[%emt 0:04:00]} Rc2+ {[%emt 0:02:10]} 53. Kd3 {[%emt 0:00:16]} Rd2+ {[%emt 0:01:15]} 54. Kc4 {[%emt 0:00:08]} Rxg2 {[%emt 0:00:44]} 55. Kxd4 {[%emt 0:00:14]} Rd2+ {[%emt 0:00:23]} 56. Kc4 {[%emt 0:00:59]} Rf2 {[%emt 0:00:42]} 57. Kd5 {[%emt 0:03:03]} Rc2 {[%emt 0:00:35]} 58. Nd3 {[%emt 0:01:25]} Kg6 {[%emt 0:00:29]} 59. Ra3 {[%emt 0:01:17]} Nc3+ {[%emt 0:00:29]} 60. Ke6 {[%emt 0:01:42]} Nxb5 {[%emt 0:00:27]} 61. Ra5 {[%emt 0:00:38]} a6 {[%emt 0:00:34]} 62. Nb4 1/2-1/2

[Event "RUS-ch Girls U21 2021"]
[Site "Loo"]
[Date "2021.04.25"]
[Round "5.10"]
[White "Stroganova, Karina"]
[Black "Gelman, Inna"]
[Result "1-0"]
[ECO "A57"]
[WhiteElo "1731"]
[BlackElo "1801"]
[Annotator "NA"]
[PlyCount "65"]
[EventDate "2021.04.21"]
[EventType "swiss"]
[EventCountry "RUS"]
[SourceTitle "playchess.com"]
[Source "ChessBase"]
[SourceQuality "1"]
[TimeControl "40/5400+30:1800+30"]

1. d4 {[%emt 0:00:00]} c5 {[%emt 0:00:00]} 2. d5 {[%emt 0:00:00]} Nf6 {[%emt 0:00:00]} 3. c4 {[%emt 0:00:02]} b5 {[%emt 0:00:00]} 4. Bf4 {[%emt 0:02:29]} bxc4 {[%emt 0:01:41]} 5. e3 {[%emt 0:04:00]} Bb7 {[%emt 0:11:29]} 6. Bxc4 {[%emt 0:02:07]} e6 {[%emt 0:00:21]} 7. dxe6 {[%emt 0:00:48]} fxe6 {[%emt 0:00:06]} 8. Nf3 {[%emt 0:02:11]} Be7 {[%emt 0:01:30]} 9. O-O {[%emt 0:01:12]} O-O {[%emt 0:00:14]} 10. Nc3 {[%emt 0:21:48]} d5 {[%emt 0:01:06]} 11. Bb5 {[%emt 0:00:40]} h6 {[%emt 0:00:41]} 12. Ne5 {[%emt 0:01:55]} Bd6 {[%emt 0:02:27]} 13. Ng6 {[%emt 0:00:39]} Rf7 {[%emt 0:01:00]} 14. e4 {[%emt 0:10:56]} Bxf4 {[%emt 0:14:22]} 15. Nxf4 {[%emt 0:00:09]} Qb6 {[%emt 0:01:14]} 16. exd5 {[%emt 0:03:54]} Nxd5 {[%emt 0:01:00]} 17. Nfxd5 {[%emt 0:03:01]} exd5 {[%emt 0:00:07]} 18. Be8 {[%emt 0:15:00]} Rf8 {[%emt 0:00:44]} 19. Nxd5 {[%emt 0:01:12]} Qd8 {[%emt 0:01:51]} 20. Nf6+ {[%emt 0:00:35]} Qxf6 {[%emt 0:02:29]} 21. Qb3+ {[%emt 0:00:07]} Kh8 {[%emt 0:00:28]} 22. Qxb7 {[%emt 0:01:04]} Rxe8 {[%emt 0:03:33]} 23. Qxa8 {[%emt 0:00:10]} Qb6 {[%emt 0:01:10]} 24. Rae1 {[%emt 0:01:59]} Rd8 {[%emt 0:01:01]} 25. Re7 {[%emt 0:04:07]} Qxb2 {[%emt 0:03:05]} 26. Rfe1 {[%emt 0:01:06]} Rf8 {[%emt 0:02:01]} 27. R7e2 {[%emt 0:06:43]} Qd4 {[%emt 0:01:10]} 28. Qxa7 {[%emt 0:01:22]} Nd7 {[%emt 0:01:45]} 29. a4 {[%emt 0:01:58]} Ne5 {[%emt 0:02:02]} 30. Qe7 {[%emt 0:01:29]} Ng6 {[%emt 0:00:49]} 31. Qe4 {[%emt 0:00:38]} Qf6 {[%emt 0:00:19]} 32. a5 {[%emt 0:01:59]} Qg5 {[%emt 0:06:26]} 33. a6 {[%emt 0:05:03]} 1-0

[Event "RUS-ch Girls U21 2021"]
[Site "Loo"]
[Date "2021.04.26"]
[Round "6.1"]
[White "Garmash, Aliona"]
[Black "Afonasieva, Anna"]
[Result "0-1"]
[ECO "D17"]
[WhiteElo "2120"]
[BlackElo "2270"]
[Annotator "NA"]
[PlyCount "116"]
[EventDate "2021.04.21"]
[EventType "swiss"]
[EventCountry "RUS"]
[SourceTitle "playchess.com"]
[Source "ChessBase"]
[SourceQuality "1"]
[TimeControl "40/5400+30:1800+30"]

1. d4 {[%emt 0:00:00]} d5 {[%emt 0:00:00]} 2. Nf3 {[%emt 0:00:00]} Nf6 {[%emt 0:00:00]} 3. c4 {[%emt 0:00:00]} c6 {[%emt 0:00:00]} 4. Nc3 {[%emt 0:00:00]} dxc4 {[%emt 0:00:00]} 5. a4 {[%emt 0:00:00]} Bf5 {[%emt 0:00:00]} 6. Ne5 {[%emt 0:00:02]} Nbd7 {[%emt 0:00:22]} 7. Nxc4 {[%emt 0:00:09]} Nb6 {[%emt 0:00:09]} 8. Ne5 {[%emt 0:00:08]} a5 {[%emt 0:00:23]} 9. f3 {[%emt 0:00:23]} Nfd7 {[%emt 0:01:47]} 10. Nxd7 {[%emt 0:00:18]} Bxd7 {[%emt 0:00:24]} 11. e4 {[%emt 0:01:35]} g6 {[%emt 0:05:39]} 12. Be3 {[%emt 0:01:37]} Bg7 {[%emt 0:02:10]} 13. Qb3 {[%emt 0:03:44]} Rc8 {[%emt 0:05:08]} 14. d5 {[%emt 0:08:08]} c5 {[%emt 0:04:14]} 15. Be2 {[%emt 0:16:54]} O-O {[%emt 0:01:26]} 16. O-O {[%emt 0:00:52]} Qc7 {[%emt 0:04:29]} 17. f4 {[%emt 0:13:52]} Bd4 {[%emt 0:06:22]} 18. Bxd4 {[%emt 0:09:47]} cxd4 {[%emt 0:00:05]} 19. Nb5 {[%emt 0:00:04]} Qc2 {[%emt 0:11:55]} 20. Nxd4 {[%emt 0:01:26]} Qc5 {[%emt 0:04:16]} 21. Rfd1 {[%emt 0:01:58]} Rfd8 {[%emt 0:11:37]} 22. Kf1 {[%emt 0:11:46]} Bxa4 {[%emt 0:06:02]} 23. Rxa4 {[%emt 0:00:26]} Nxa4 {[%emt 0:00:04]} 24. Qxa4 {[%emt 0:00:03]} Qd6 {[%emt 0:02:04]} 25. g3 {[%emt 0:06:56]} Qb6 {[%emt 0:04:50]} 26. Qb5 {[%emt 0:02:23]} Qa7 {[%emt 0:01:14]} 27. f5 {[%emt 0:03:26]} Rc5 {[%emt 0:05:03]} 28. Qb3 {[%emt 0:00:10]} Rd6 {[%emt 0:05:39]} 29. Qe3 {[%emt 0:03:18]} Qb6 {[%emt 0:01:18]} 30. Qg5 {[%emt 0:00:49]} Rd7 {[%emt 0:02:09]} 31. fxg6 {[%emt 0:00:36]} Qxg6 {[%emt 0:04:53]} 32. Qe5 {[%emt 0:04:17]} Qd6 {[%emt 0:05:02]} 33. Qg5+ {[%emt 0:02:13]} Qg6 {[%emt 0:01:19]} 34. Qxg6+ {[%emt 0:03:07]} hxg6 {[%emt 0:00:08]} 35. Nb3 {[%emt 0:00:28]} Rc2 {[%emt 0:00:39]} 36. Nxa5 {[%emt 0:00:07]} Rxb2 {[%emt 0:00:35]} 37. e5 {[%emt 0:00:39]} f6 {[%emt 0:04:39]} 38. e6 {[%emt 0:00:56]} Rc7 {[%emt 0:00:27]} 39. Bd3 {[%emt 0:05:18]} f5 {[%emt 0:01:34]} 40. h4 {[%emt 0:00:00]} Rb4 {[%emt 0:00:00]} 41. Re1 {[%emt 0:20:02]} Rd4 {[%emt 0:02:30]} 42. Be2 {[%emt 0:02:28]} Rxd5 {[%emt 0:00:37]} 43. Nc4 {[%emt 0:00:22]} Kg7 {[%emt 0:01:38]} 44. Bf3 {[%emt 0:03:04]} Rdc5 {[%emt 0:00:47]} 45. Ne5 {[%emt 0:00:38]} b5 {[%emt 0:00:37]} 46. h5 {[%emt 0:00:58]} gxh5 {[%emt 0:03:48]} 47. Bxh5 {[%emt 0:00:25]} Rc3 {[%emt 0:02:41]} 48. g4 {[%emt 0:03:24]} f4 {[%emt 0:00:58]} 49. Bg6 {[%emt 0:00:54]} b4 {[%emt 0:02:27]} 50. Bf5 {[%emt 0:00:34]} b3 {[%emt 0:01:36]} 51. Nd3 {[%emt 0:00:18]} R7c4 {[%emt 0:03:15]} 52. Rb1 {[%emt 0:02:12]} Rd4 {[%emt 0:01:29]} 53. Ke2 {[%emt 0:00:29]} Rc2+ {[%emt 0:03:17]} 54. Kd1 {[%emt 0:01:10]} f3 {[%emt 0:02:25]} 55. Ke1 {[%emt 0:00:33]} Ra4 {[%emt 0:01:25]} 56. Nc1 {[%emt 0:01:08]} Rh2 {[%emt 0:02:23]} 57. Rxb3 {[%emt 0:00:27]} f2+ {[%emt 0:02:01]} 58. Kf1 {[%emt 0:00:06]} Rf4 {[%emt 0:00:42]} 0-1

[Event "RUS-ch Girls U21 2021"]
[Site "Loo"]
[Date "2021.04.26"]
[Round "6.2"]
[White "Sakorenko, Adriana"]
[Black "Nasyrova, Ekaterina"]
[Result "1-0"]
[ECO "C67"]
[WhiteElo "2216"]
[BlackElo "2273"]
[Annotator "NA"]
[PlyCount "73"]
[EventDate "2021.04.21"]
[EventType "swiss"]
[EventCountry "RUS"]
[SourceTitle "playchess.com"]
[Source "ChessBase"]
[SourceQuality "1"]
[TimeControl "40/5400+30:1800+30"]

1. e4 {[%emt 0:00:00]} e5 {[%emt 0:00:00]} 2. Nf3 {[%emt 0:00:00]} Nc6 {[%emt 0:00:00]} 3. Bb5 {[%emt 0:00:00]} Nf6 {[%emt 0:00:05]} 4. O-O {[%emt 0:00:35]} Nxe4 {[%emt 0:00:11]} 5. Re1 {[%emt 0:00:11]} Nd6 {[%emt 0:00:12]} 6. Nxe5 {[%emt 0:00:25]} Be7 {[%emt 0:00:13]} 7. Bf1 {[%emt 0:00:43]} Nf5 {[%emt 0:00:19]} 8. Nf3 {[%emt 0:01:26]} O-O {[%emt 0:00:24]} 9. d4 {[%emt 0:00:22]} d5 {[%emt 0:00:24]} 10. Nc3 {[%emt 0:00:46]} Be6 {[%emt 0:03:04]} 11. Ne2 {[%emt 0:01:10]} g5 {[%emt 0:07:30]} 12. Ng3 {[%emt 0:06:01]} Ng7 {[%emt 0:03:37]} 13. Bb5 {[%emt 0:10:42]} Rb8 {[%emt 0:28:21]} 14. c3 {[%emt 0:15:08]} h6 {[%emt 0:21:24]} 15. Ba4 {[%emt 0:19:37]} Bd6 {[%emt 0:01:55]} 16. Ne5 {[%emt 0:03:09]} Ne7 {[%emt 0:02:43]} 17. f4 {[%emt 0:06:34]} Ng6 {[%emt 0:13:58]} 18. Nh5 {[%emt 0:08:21]} Bf5 {[%emt 0:03:24]} 19. fxg5 {[%emt 0:11:29]} hxg5 {[%emt 0:02:22]} 20. Rf1 {[%emt 0:00:20]} Nxe5 {[%emt 0:07:55]} 21. dxe5 {[%emt 0:01:58]} Bxe5 {[%emt 0:01:41]} 22. Nxg7 {[%emt 0:00:41]} Kxg7 {[%emt 0:00:32]} 23. Rxf5 {[%emt 0:00:51]} f6 {[%emt 0:00:12]} 24. Qg4 {[%emt 0:04:25]} Qd6 {[%emt 0:00:41]} 25. g3 {[%emt 0:03:35]} Qc5+ {[%emt 0:00:49]} 26. Kg2 {[%emt 0:00:13]} Qc4 {[%emt 0:00:17]} 27. Qxc4 {[%emt 0:00:55]} dxc4 {[%emt 0:00:02]} 28. Bxg5 {[%emt 0:01:42]} b5 {[%emt 0:00:29]} 29. Bc2 {[%emt 0:00:34]} b4 {[%emt 0:00:14]} 30. Rb1 {[%emt 0:02:14]} b3 {[%emt 0:01:01]} 31. axb3 {[%emt 0:00:07]} cxb3 {[%emt 0:00:06]} 32. Be4 {[%emt 0:00:32]} Rfe8 {[%emt 0:00:52]} 33. Bd2 {[%emt 0:00:45]} Bxg3 {[%emt 0:00:24]} 34. hxg3 {[%emt 0:00:46]} Rxe4 {[%emt 0:00:07]} 35. Ra1 {[%emt 0:00:32]} Rb7 {[%emt 0:01:20]} 36. Kf3 {[%emt 0:00:17]} Re7 {[%emt 0:00:20]} 37. Be3 {[%emt 0:00:14]} 1-0

[Event "RUS-ch Girls U21 2021"]
[Site "Loo"]
[Date "2021.04.26"]
[Round "6.3"]
[White "Grigorieva, Yulia"]
[Black "Nosacheva, Mariya"]
[Result "1/2-1/2"]
[ECO "E91"]
[WhiteElo "2236"]
[BlackElo "2199"]
[Annotator "NA"]
[PlyCount "74"]
[EventDate "2021.04.21"]
[EventType "swiss"]
[EventCountry "RUS"]
[SourceTitle "playchess.com"]
[Source "ChessBase"]
[SourceQuality "1"]
[TimeControl "40/5400+30:1800+30"]

1. d4 {[%emt 0:00:00]} Nf6 {[%emt 0:00:00]} 2. c4 {[%emt 0:00:00]} g6 {[%emt 0:00:00]} 3. Nc3 {[%emt 0:00:00]} Bg7 {[%emt 0:00:00]} 4. e4 {[%emt 0:00:00]} d6 {[%emt 0:00:00]} 5. Nf3 {[%emt 0:00:03]} O-O {[%emt 0:00:13]} 6. Be2 {[%emt 0:00:20]} c6 {[%emt 0:00:10]} 7. O-O {[%emt 0:01:21]} e5 {[%emt 0:00:05]} 8. dxe5 {[%emt 0:00:29]} dxe5 {[%emt 0:00:40]} 9. Nxe5 {[%emt 0:00:23]} Nxe4 {[%emt 0:12:01]} 10. Nxe4 {[%emt 0:00:02]} Bxe5 {[%emt 0:01:43]} 11. Bg5 {[%emt 0:00:13]} Qxd1 {[%emt 0:12:52]} 12. Rfxd1 {[%emt 0:00:40]} Bxb2 {[%emt 0:02:03]} 13. Rab1 {[%emt 0:00:33]} Bg7 {[%emt 0:07:20]} 14. Nd6 {[%emt 0:10:39]} f6 {[%emt 0:00:43]} 15. Be3 {[%emt 0:20:03]} b6 {[%emt 0:02:11]} 16. c5 {[%emt 0:01:53]} Be6 {[%emt 0:00:20]} 17. Bc4 {[%emt 0:02:32]} Bxc4 {[%emt 0:01:34]} 18. Nxc4 {[%emt 0:00:02]} f5 {[%emt 0:14:24]} 19. a4 {[%emt 0:14:39]} f4 {[%emt 0:05:26]} 20. cxb6 {[%emt 0:07:14]} axb6 {[%emt 0:02:29]} 21. Nxb6 {[%emt 0:01:10]} Ra5 {[%emt 0:07:28]} 22. Bd4 {[%emt 0:04:48]} Bxd4 {[%emt 0:06:42]} 23. Rxd4 {[%emt 0:00:02]} Na6 {[%emt 0:00:41]} 24. Re1 {[%emt 0:12:22]} Rb8 {[%emt 0:04:35]} 25. Nd7 {[%emt 0:04:46]} Rb4 {[%emt 0:00:45]} 26. Rd6 {[%emt 0:03:11]} Rbxa4 {[%emt 0:01:15]} 27. Rxc6 {[%emt 0:01:43]} Ra1 {[%emt 0:00:41]} 28. Kf1 {[%emt 0:04:08]} f3 {[%emt 0:04:33]} 29. gxf3 {[%emt 0:01:13]} Rxe1+ {[%emt 0:01:03]} 30. Kxe1 {[%emt 0:00:01]} Nb4 {[%emt 0:01:09]} 31. Rc4 {[%emt 0:04:36]} Nd5 {[%emt 0:00:18]} 32. Rc5 {[%emt 0:03:00]} Ra1+ {[%emt 0:00:35]} 33. Kd2 {[%emt 0:00:53]} Ra2+ {[%emt 0:00:08]} 34. Rc2 {[%emt 0:00:36]} Ra3 {[%emt 0:00:54]} 35. Rc5 {[%emt 0:00:31]} Ra2+ {[%emt 0:00:03]} 36. Rc2 {[%emt 0:00:05]} Ra3 {[%emt 0:00:04]} 37. Rc5 {[%emt 0:00:06]} Ra2+ {[%emt 0:00:04]} 1/2-1/2

[Event "RUS-ch Girls U21 2021"]
[Site "Loo"]
[Date "2021.04.26"]
[Round "6.4"]
[White "Goltseva, Ekaterina"]
[Black "Shvedova, Alexandra"]
[Result "1-0"]
[ECO "A46"]
[WhiteElo "2269"]
[BlackElo "2000"]
[Annotator "NA"]
[PlyCount "75"]
[EventDate "2021.04.21"]
[EventType "swiss"]
[EventCountry "RUS"]
[SourceTitle "playchess.com"]
[Source "ChessBase"]
[SourceQuality "1"]
[TimeControl "40/5400+30:1800+30"]

1. d4 {[%emt 0:00:00]} Nf6 {[%emt 0:00:00]} 2. Nf3 {[%emt 0:02:32]} d5 {[%emt 0:00:12]} 3. g3 {[%emt 0:00:11]} e6 {[%emt 0:04:19]} 4. Bg2 {[%emt 0:01:06]} c5 {[%emt 0:00:30]} 5. c4 {[%emt 0:02:59]} Nc6 {[%emt 0:03:54]} 6. cxd5 {[%emt 0:07:36]} Nxd5 {[%emt 0:00:35]} 7. O-O {[%emt 0:03:00]} Nf6 {[%emt 0:08:47]} 8. dxc5 {[%emt 0:02:22]} Qxd1 {[%emt 0:00:09]} 9. Rxd1 {[%emt 0:00:03]} Bxc5 {[%emt 0:00:07]} 10. Nbd2 {[%emt 0:11:37]} e5 {[%emt 0:21:35]} 11. Nc4 {[%emt 0:05:44]} e4 {[%emt 0:01:40]} 12. Ng5 {[%emt 0:01:16]} Bf5 {[%emt 0:00:59]} 13. Be3 {[%emt 0:05:59]} Be7 {[%emt 0:13:42]} 14. Nd6+ {[%emt 0:19:06]} Bxd6 {[%emt 0:00:08]} 15. Rxd6 {[%emt 0:00:04]} h6 {[%emt 0:01:04]} 16. Nh3 {[%emt 0:02:01]} Ng4 {[%emt 0:01:46]} 17. Bc5 {[%emt 0:02:32]} Nge5 {[%emt 0:02:40]} 18. Nf4 {[%emt 0:02:47]} O-O {[%emt 0:01:28]} 19. Rd5 {[%emt 0:04:56]} Rfe8 {[%emt 0:01:24]} 20. Rad1 {[%emt 0:03:30]} Bh7 {[%emt 0:08:41]} 21. b3 {[%emt 0:05:43]} Rac8 {[%emt 0:01:48]} 22. R5d2 {[%emt 0:01:04]} b6 {[%emt 0:01:46]} 23. Ba3 {[%emt 0:00:43]} f6 {[%emt 0:09:45]} 24. Nd5 {[%emt 0:01:39]} Kf7 {[%emt 0:00:10]} 25. Nc3 {[%emt 0:01:00]} e3 {[%emt 0:06:03]} 26. fxe3 {[%emt 0:02:10]} a6 {[%emt 0:02:35]} 27. Bd5+ {[%emt 0:01:45]} Kg6 {[%emt 0:00:06]} 28. Ne4 {[%emt 0:00:59]} Rb8 {[%emt 0:01:10]} 29. Nd6 {[%emt 0:00:48]} Rf8 {[%emt 0:00:07]} 30. Be4+ {[%emt 0:02:22]} f5 {[%emt 0:00:04]} 31. Nxf5 {[%emt 0:01:03]} Rxf5 {[%emt 0:00:08]} 32. g4 {[%emt 0:00:35]} Nxg4 {[%emt 0:00:42]} 33. Rd6+ {[%emt 0:00:04]} Kf7 {[%emt 0:00:10]} 34. Bxf5 {[%emt 0:00:16]} Bxf5 {[%emt 0:00:06]} 35. Rxc6 {[%emt 0:00:16]} Nxe3 {[%emt 0:00:06]} 36. Rdd6 {[%emt 0:00:34]} Re8 {[%emt 0:01:16]} 37. Rc7+ {[%emt 0:00:18]} Kg8 {[%emt 0:00:06]} 38. Bb2 {[%emt 0:00:11]} 1-0

[Event "RUS-ch Girls U21 2021"]
[Site "Loo"]
[Date "2021.04.26"]
[Round "6.5"]
[White "Filippova, Darya"]
[Black "Shafigullina, Zarina"]
[Result "1-0"]
[ECO "A30"]
[WhiteElo "1915"]
[BlackElo "2293"]
[Annotator "NA"]
[PlyCount "93"]
[EventDate "2021.04.21"]
[EventType "swiss"]
[EventCountry "RUS"]
[SourceTitle "playchess.com"]
[Source "ChessBase"]
[SourceQuality "1"]
[TimeControl "40/5400+30:1800+30"]

1. c4 {[%emt 0:00:00]} Nf6 {[%emt 0:00:00]} 2. Nf3 {[%emt 0:00:31]} e6 {[%emt 0:00:00]} 3. g3 {[%emt 0:02:59]} b6 {[%emt 0:01:18]} 4. Bg2 {[%emt 0:00:39]} Bb7 {[%emt 0:00:06]} 5. O-O {[%emt 0:01:31]} c5 {[%emt 0:00:43]} 6. Nc3 {[%emt 0:03:08]} Be7 {[%emt 0:00:54]} 7. Re1 {[%emt 0:03:38]} O-O {[%emt 0:03:39]} 8. e4 {[%emt 0:00:21]} d6 {[%emt 0:00:30]} 9. d4 {[%emt 0:06:42]} cxd4 {[%emt 0:00:07]} 10. Nxd4 {[%emt 0:00:05]} Qc8 {[%emt 0:02:05]} 11. b3 {[%emt 0:03:37]} a6 {[%emt 0:00:42]} 12. Bb2 {[%emt 0:00:24]} Nc6 {[%emt 0:11:40]} 13. Rc1 {[%emt 0:09:03]} Nxd4 {[%emt 0:09:51]} 14. Qxd4 {[%emt 0:00:09]} Qc6 {[%emt 0:00:13]} 15. Na4 {[%emt 0:08:09]} Bd8 {[%emt 0:04:11]} 16. h3 {[%emt 0:07:11]} Bc7 {[%emt 0:07:09]} 17. Kh2 {[%emt 0:00:58]} Rac8 {[%emt 0:03:11]} 18. Bh1 {[%emt 0:03:26]} e5 {[%emt 0:02:42]} 19. Qe3 {[%emt 0:00:19]} b5 {[%emt 0:01:59]} 20. cxb5 {[%emt 0:00:24]} Qxb5 {[%emt 0:00:04]} 21. Red1 {[%emt 0:06:12]} Bb8 {[%emt 0:04:58]} 22. Nc3 {[%emt 0:05:53]} Qa5 {[%emt 0:03:27]} 23. a3 {[%emt 0:00:51]} Rc6 {[%emt 0:05:21]} 24. b4 {[%emt 0:02:09]} Qc7 {[%emt 0:03:10]} 25. a4 {[%emt 0:02:11]} Rc8 {[%emt 0:02:38]} 26. b5 {[%emt 0:02:43]} axb5 {[%emt 0:02:07]} 27. Nxb5 {[%emt 0:01:47]} Qa5 {[%emt 0:05:28]} 28. Rxc6 {[%emt 0:00:14]} Rxc6 {[%emt 0:00:11]} 29. Qb3 {[%emt 0:01:37]} Qb6 {[%emt 0:02:55]} 30. Rd2 {[%emt 0:02:13]} Nd7 {[%emt 0:01:30]} 31. Qb4 {[%emt 0:01:23]} Ba6 {[%emt 0:01:31]} 32. Bg2 {[%emt 0:01:55]} Rc5 33. Bf1 Qc6 {[%emt 0:04:52]} 34. Bd3 {[%emt 0:01:11]} Nb6 {[%emt 0:05:48]} 35. Qa5 {[%emt 0:05:49]} Bxb5 {[%emt 0:06:25]} 36. Bxb5 {[%emt 0:01:54]} Bc7 {[%emt 0:01:26]} 37. Qa6 {[%emt 0:03:13]} Qxe4 {[%emt 0:03:11]} 38. a5 {[%emt 0:00:00]} g6 {[%emt 0:02:19]} 39. axb6 Bb8 {[%emt 0:00:00]} 40. Ba3 {[%emt 0:00:00]} Rc3 41. b7 {[%emt 0:07:05]} h5 {[%emt 0:03:57]} 42. Qa8 {[%emt 0:06:30]} Kg7 {[%emt 0:00:07]} 43. Bb2 {[%emt 0:04:29]} Rb3 {[%emt 0:04:01]} 44. Qxb8 {[%emt 0:02:02]} Rxb5 {[%emt 0:00:07]} 45. Qxd6 {[%emt 0:00:10]} Qxb7 {[%emt 0:00:33]} 46. Bxe5+ {[%emt 0:00:15]} Kh7 {[%emt 0:00:23]} 47. Qf6 {[%emt 0:00:14]} 1-0

[Event "RUS-ch Girls U21 2021"]
[Site "Loo"]
[Date "2021.04.26"]
[Round "6.6"]
[White "Pankova, Julia"]
[Black "Serditykh, Olesya"]
[Result "1/2-1/2"]
[ECO "C16"]
[WhiteElo "1884"]
[BlackElo "1961"]
[Annotator "NA"]
[PlyCount "25"]
[EventDate "2021.04.21"]
[EventType "swiss"]
[EventCountry "RUS"]
[SourceTitle "playchess.com"]
[Source "ChessBase"]
[SourceQuality "1"]
[TimeControl "40/5400+30:1800+30"]

1. e4 {[%emt 0:00:00]} e6 {[%emt 0:00:00]} 2. d4 {[%emt 0:00:00]} d5 {[%emt 0:00:00]} 3. Nc3 {[%emt 0:00:00]} Bb4 {[%emt 0:00:00]} 4. e5 {[%emt 0:00:00]} Ne7 {[%emt 0:00:00]} 5. Qg4 {[%emt 0:00:00]} c5 {[%emt 0:00:26]} 6. dxc5 {[%emt 0:00:00]} Nbc6 {[%emt 0:11:27]} 7. Bd2 {[%emt 0:00:17]} Bxc5 {[%emt 0:07:26]} 8. Qxg7 {[%emt 0:11:25]} Ng6 {[%emt 0:02:09]} 9. f4 {[%emt 0:31:01]} Bf8 {[%emt 0:38:27]} 10. Qf6 {[%emt 0:00:10]} Be7 {[%emt 0:00:57]} 11. Qg7 {[%emt 0:00:05]} Bf8 {[%emt 0:09:10]} 12. Qf6 {[%emt 0:00:06]} Be7 {[%emt 0:00:07]} 13. Qg7 {[%emt 0:00:05]} 1/2-1/2